[Event "Late-Titled-Tuesday-Blitz-April-30-2024"]
[Site "Chess.com"]
[Date "2024.04.30"]
[Round "10"]
[White "Mikhal867"]
[Black "Cacriefils1984"]
[Result "1/2-1/2"]
[WhiteElo "2515"]
[BlackElo "2358"]
[TimeControl "180+1"]
[EndTime "15:55:37 PDT"]
[Termination "Game drawn by repetition"]

1. d4 {[%clk 0:02:55.4]} 1... Nf6 {[%clk 0:02:59.6]} 2. c4 {[%clk 0:02:55]} 2...
g6 {[%clk 0:02:59.8]} 3. f3 {[%clk 0:02:54.1]} 3... Bg7 {[%clk 0:02:59.6]} 4. e4
{[%clk 0:02:54.7]} 4... d6 {[%clk 0:03:00.2]} 5. Nc3 {[%clk 0:02:55.3]} 5... O-O
{[%clk 0:03:00.1]} 6. Be3 {[%clk 0:02:55.9]} 6... Nbd7 {[%clk 0:03:00.4]} 7.
Nge2 {[%clk 0:02:56.5]} 7... c5 {[%clk 0:02:59.8]} 8. d5 {[%clk 0:02:56.4]} 8...
Ne5 {[%clk 0:03:00.5]} 9. Ng3 {[%clk 0:02:54.4]} 9... h5 {[%clk 0:02:57.4]} 10.
Be2 {[%clk 0:02:54.1]} 10... h4 {[%clk 0:02:56.5]} 11. Nf1 {[%clk 0:02:54.2]}
11... e6 {[%clk 0:02:47.6]} 12. Bg5 {[%clk 0:02:35.8]} 12... Qb6 {[%clk
0:02:30.6]} 13. Qd2 {[%clk 0:02:32]} 13... exd5 {[%clk 0:02:24.6]} 14. cxd5
{[%clk 0:02:18.2]} 14... h3 {[%clk 0:02:18.9]} 15. g4 {[%clk 0:02:17.7]} 15...
Bd7 {[%clk 0:02:07.8]} 16. a4 {[%clk 0:02:08.9]} 16... Rfc8 {[%clk 0:01:56.1]}
17. Ng3 {[%clk 0:02:05.3]} 17... c4 {[%clk 0:01:53.4]} 18. Be3 {[%clk
0:02:01.8]} 18... Qd8 {[%clk 0:01:42.9]} 19. g5 {[%clk 0:01:59.3]} 19... Nh7
{[%clk 0:01:27.5]} 20. f4 {[%clk 0:01:58.3]} 20... Ng4 {[%clk 0:01:27.2]} 21.
Bd4 {[%clk 0:01:42.2]} 21... Bxd4 {[%clk 0:01:07.2]} 22. Qxd4 {[%clk 0:01:40.5]}
22... Qb6 {[%clk 0:01:08]} 23. Qxb6 {[%clk 0:01:39.3]} 23... axb6 {[%clk
0:01:08.9]} 24. Bxg4 {[%clk 0:01:27.1]} 24... Bxg4 {[%clk 0:01:08.5]} 25. Kf2
{[%clk 0:01:16.2]} 25... Nf8 {[%clk 0:01:05.9]} 26. e5 {[%clk 0:01:10.1]} 26...
dxe5 {[%clk 0:00:58.3]} 27. fxe5 {[%clk 0:01:10]} 27... Nd7 {[%clk 0:00:58.9]}
28. Rhe1 {[%clk 0:01:06.4]} 28... Nc5 {[%clk 0:00:58.8]} 29. Nge4 {[%clk
0:01:01.2]} 29... Bf5 {[%clk 0:00:51.8]} 30. Nxc5 {[%clk 0:00:55.2]} 30... Rxc5
{[%clk 0:00:50.1]} 31. Rad1 {[%clk 0:00:47.8]} 31... Re8 {[%clk 0:00:43.5]} 32.
Kg3 {[%clk 0:00:44.7]} 32... Kg7 {[%clk 0:00:38.6]} 33. Kf4 {[%clk 0:00:44]}
33... Bc2 {[%clk 0:00:37.5]} 34. Rd2 {[%clk 0:00:42.3]} 34... Bf5 {[%clk
0:00:37.9]} 35. d6 {[%clk 0:00:41.8]} 35... Bd7 {[%clk 0:00:29]} 36. Rd5 {[%clk
0:00:38.3]} 36... Rcc8 {[%clk 0:00:21.6]} 37. Rd4 {[%clk 0:00:33.5]} 37... Rh8
{[%clk 0:00:22.1]} 38. Kg3 {[%clk 0:00:32.8]} 38... Rc5 {[%clk 0:00:20.1]} 39.
Rf4 {[%clk 0:00:29.6]} 39... Be6 {[%clk 0:00:18.9]} 40. Rh4 {[%clk 0:00:25.1]}
40... Rxh4 {[%clk 0:00:17.4]} 41. Kxh4 {[%clk 0:00:25.2]} 41... Bd7 {[%clk
0:00:17.4]} 42. Kg3 {[%clk 0:00:24.6]} 42... Be6 {[%clk 0:00:17.7]} 43. Kf4
{[%clk 0:00:24.8]} 43... Kf8 {[%clk 0:00:18.1]} 44. Re4 {[%clk 0:00:22.7]} 44...
Ke8 {[%clk 0:00:18]} 45. Nb5 {[%clk 0:00:22.1]} 45... Bf5 {[%clk 0:00:12.1]} 46.
Re3 {[%clk 0:00:21.7]} 46... Kd7 {[%clk 0:00:12.5]} 47. Nd4 {[%clk 0:00:20.6]}
47... Be6 {[%clk 0:00:09.8]} 48. Nxe6 {[%clk 0:00:18.9]} 48... Kxe6 {[%clk
0:00:10.7]} 49. Rxh3 {[%clk 0:00:18.7]} 49... Rxe5 {[%clk 0:00:10.2]} 50. Rh7
{[%clk 0:00:14.6]} 50... Rf5+ {[%clk 0:00:07.4]} 51. Ke4 {[%clk 0:00:14.9]}
51... Kxd6 {[%clk 0:00:08.2]} 52. h4 {[%clk 0:00:14.6]} 52... Kc5 {[%clk
0:00:07.8]} 53. Rh8 {[%clk 0:00:14.5]} 53... Rf1 {[%clk 0:00:06.3]} 54. Rb8
{[%clk 0:00:12.5]} 54... Kc6 {[%clk 0:00:04.6]} 55. Kd4 {[%clk 0:00:12]} 55...
Rf4+ {[%clk 0:00:04.3]} 56. Kc3 {[%clk 0:00:12.3]} 56... Rxh4 {[%clk 0:00:05.1]}
57. Rf8 {[%clk 0:00:12.2]} 57... Kc5 {[%clk 0:00:04.4]} 58. Rxf7 {[%clk
0:00:12]} 58... Rh3+ {[%clk 0:00:05.1]} 59. Kc2 {[%clk 0:00:12.4]} 59... Kb4
{[%clk 0:00:05.8]} 60. Rf6 {[%clk 0:00:12.2]} 60... b5 {[%clk 0:00:05]} 61. axb5
{[%clk 0:00:11.1]} 61... Kxb5 {[%clk 0:00:05.9]} 62. Rxg6 {[%clk 0:00:11.4]}
62... Kb4 {[%clk 0:00:04.8]} 63. Rg7 {[%clk 0:00:11.7]} 63... b5 {[%clk
0:00:05.1]} 64. g6 {[%clk 0:00:11.5]} 64... Rh2+ {[%clk 0:00:04.2]} 65. Kc1
{[%clk 0:00:11.7]} 65... Kb3 {[%clk 0:00:05.1]} 66. Rb7 {[%clk 0:00:10.2]} 66...
b4 {[%clk 0:00:05.5]} 67. g7 {[%clk 0:00:10.4]} 67... Rg2 {[%clk 0:00:06.2]} 68.
Kd1 {[%clk 0:00:08.8]} 68... c3 {[%clk 0:00:05.8]} 69. bxc3 {[%clk 0:00:08.6]}
69... Kxc3 {[%clk 0:00:06.7]} 70. Rc7+ {[%clk 0:00:08.2]} 70... Kb3 {[%clk
0:00:07.3]} 71. Kc1 {[%clk 0:00:08.2]} 71... Ka3 {[%clk 0:00:07.4]} 72. Kb1
{[%clk 0:00:08]} 72... Kb3 {[%clk 0:00:07.8]} 73. Kc1 {[%clk 0:00:08.2]} 73...
Ka3 {[%clk 0:00:08.2]} 74. Kb1 {[%clk 0:00:08.6]} 74... Kb3 {[%clk 0:00:08.8]}
75. Kc1 {[%clk 0:00:09]} 1/2-1/2

[Event "Late-Titled-Tuesday-Blitz-April-30-2024"]
[Site "Chess.com"]
[Date "2024.04.30"]
[Round "10"]
[White "TheoSlade"]
[Black "CarrotsandPizza"]
[Result "1-0"]
[WhiteElo "2463"]
[BlackElo "2573"]
[TimeControl "180+1"]
[EndTime "15:55:38 PDT"]
[Termination "TheoSlade won by checkmate"]

1. d4 {[%clk 0:03:00.9]} 1... Nf6 {[%clk 0:02:59.4]} 2. c4 {[%clk 0:03:01]} 2...
g6 {[%clk 0:02:59.4]} 3. Nc3 {[%clk 0:03:01]} 3... Bg7 {[%clk 0:02:59.6]} 4. e4
{[%clk 0:03:01.5]} 4... d6 {[%clk 0:02:59.9]} 5. Nf3 {[%clk 0:03:02]} 5... O-O
{[%clk 0:03:00.1]} 6. Be2 {[%clk 0:03:02.5]} 6... Na6 {[%clk 0:03:00.4]} 7. O-O
{[%clk 0:03:02.2]} 7... e5 {[%clk 0:03:00.7]} 8. Be3 {[%clk 0:03:02.6]} 8... c6
{[%clk 0:03:00.8]} 9. d5 {[%clk 0:03:01.5]} 9... Ng4 {[%clk 0:03:00.7]} 10. Bg5
{[%clk 0:03:00.7]} 10... f6 {[%clk 0:03:01.1]} 11. Bd2 {[%clk 0:02:57.4]} 11...
f5 {[%clk 0:03:01.5]} 12. exf5 {[%clk 0:02:55.2]} 12... gxf5 {[%clk 0:03:01.3]}
13. Bg5 {[%clk 0:02:44.5]} 13... Nf6 {[%clk 0:03:01.1]} 14. Qd2 {[%clk
0:02:35.5]} 14... Qe7 {[%clk 0:03:00.7]} 15. Rad1 {[%clk 0:02:30.1]} 15... c5
{[%clk 0:02:57.9]} 16. Bh6 {[%clk 0:02:25]} 16... Kh8 {[%clk 0:02:56.1]} 17.
Bxg7+ {[%clk 0:02:12.7]} 17... Qxg7 {[%clk 0:02:55.5]} 18. Qg5 {[%clk
0:02:09.2]} 18... Rg8 {[%clk 0:02:48.7]} 19. Qxg7+ {[%clk 0:02:08]} 19... Rxg7
{[%clk 0:02:49.3]} 20. Nb5 {[%clk 0:02:05]} 20... Ne8 {[%clk 0:02:41.5]} 21. Nh4
{[%clk 0:01:59.8]} 21... Bd7 {[%clk 0:02:32.5]} 22. a4 {[%clk 0:01:58.5]} 22...
Nb4 {[%clk 0:02:22.3]} 23. Bd3 {[%clk 0:01:54.2]} 23... Nxd3 {[%clk 0:02:05.7]}
24. Rxd3 {[%clk 0:01:54]} 24... Rg4 {[%clk 0:02:05.7]} 25. g3 {[%clk 0:01:38.4]}
25... Rxc4 {[%clk 0:02:03.1]} 26. b3 {[%clk 0:01:37.2]} 26... Rb4 {[%clk
0:01:56.9]} 27. Na3 {[%clk 0:01:34.8]} 27... Kg7 {[%clk 0:01:45.5]} 28. f4
{[%clk 0:01:29]} 28... e4 {[%clk 0:01:43.5]} 29. Rc3 {[%clk 0:01:24.8]} 29...
Rd4 {[%clk 0:01:39.9]} 30. Ng2 {[%clk 0:01:20.3]} 30... Rxd5 {[%clk 0:01:25.6]}
31. Ne3 {[%clk 0:01:18.1]} 31... Rd4 {[%clk 0:01:25.5]} 32. Nac2 {[%clk
0:01:15.2]} 32... Rd2 {[%clk 0:01:21]} 33. Nc4 {[%clk 0:01:12.8]} 33... Rd5
{[%clk 0:00:35.4]} 34. N2e3 {[%clk 0:01:12.2]} 34... Rd4 {[%clk 0:00:27.8]} 35.
Nc2 {[%clk 0:01:12.5]} 35... Rd3 {[%clk 0:00:20.5]} 36. Rxd3 {[%clk 0:01:12.4]}
36... exd3 {[%clk 0:00:21.4]} 37. N2e3 {[%clk 0:01:12.9]} 37... a6 {[%clk
0:00:16.8]} 38. Rd1 {[%clk 0:01:11.1]} 38... b5 {[%clk 0:00:16.6]} 39. Nb6
{[%clk 0:01:11.6]} 39... Rd8 {[%clk 0:00:14.6]} 40. Nxd7 {[%clk 0:01:10.2]}
40... Rxd7 {[%clk 0:00:14.4]} 41. Nxf5+ {[%clk 0:01:08]} 41... Kf6 {[%clk
0:00:12.8]} 42. Ne3 {[%clk 0:01:08.4]} 42... d5 {[%clk 0:00:10.9]} 43. Rxd3
{[%clk 0:01:08.5]} 43... d4 {[%clk 0:00:11.4]} 44. Ng4+ {[%clk 0:01:08.6]} 44...
Kf5 {[%clk 0:00:11.1]} 45. Ne5 {[%clk 0:01:09.3]} 45... Rd5 {[%clk 0:00:11.3]}
46. axb5 {[%clk 0:01:08.8]} 46... axb5 {[%clk 0:00:10.9]} 47. Kf2 {[%clk
0:01:08.4]} 47... Ke4 {[%clk 0:00:10.6]} 48. Rd1 {[%clk 0:00:59.7]} 48... d3
{[%clk 0:00:11]} 49. Re1+ {[%clk 0:00:56.2]} 49... Kf5 {[%clk 0:00:10.1]} 50.
Rd1 {[%clk 0:00:47.6]} 50... Ke4 {[%clk 0:00:06.6]} 51. Ng4 {[%clk 0:00:34.8]}
51... Kd4 {[%clk 0:00:03.6]} 52. Ne3 {[%clk 0:00:35]} 52... Rd8 {[%clk
0:00:02.9]} 53. Nf5+ {[%clk 0:00:33.9]} 53... Kc3 {[%clk 0:00:03]} 54. Ke3
{[%clk 0:00:32.5]} 54... d2 {[%clk 0:00:02.8]} 55. Ke2 {[%clk 0:00:26.9]} 55...
Kxb3 {[%clk 0:00:03.1]} 56. Rxd2 {[%clk 0:00:26.3]} 56... Rxd2+ {[%clk
0:00:03.8]} 57. Kxd2 {[%clk 0:00:27.2]} 57... Kb2 {[%clk 0:00:04.4]} 58. Ne7
{[%clk 0:00:20.8]} 58... Nd6 {[%clk 0:00:04.3]} 59. Nd5 {[%clk 0:00:20.5]} 59...
c4 {[%clk 0:00:04.2]} 60. g4 {[%clk 0:00:21.2]} 60... Ne4+ {[%clk 0:00:03.8]}
61. Ke3 {[%clk 0:00:21]} 61... c3 {[%clk 0:00:04.5]} 62. Kxe4 {[%clk 0:00:20]}
62... c2 {[%clk 0:00:04.1]} 63. Nb4 {[%clk 0:00:20.7]} 63... c1=Q {[%clk
0:00:04.6]} 64. Nd3+ {[%clk 0:00:21.2]} 64... Kc2 {[%clk 0:00:04.5]} 65. Nxc1
{[%clk 0:00:22.1]} 65... Kxc1 {[%clk 0:00:05]} 66. Kd4 {[%clk 0:00:20.1]} 66...
Kc2 {[%clk 0:00:04.9]} 67. Kc5 {[%clk 0:00:20.4]} 67... Kd3 {[%clk 0:00:04.9]}
68. f5 {[%clk 0:00:18.8]} 68... b4 {[%clk 0:00:05.5]} 69. Kxb4 {[%clk
0:00:18.5]} 69... Ke4 {[%clk 0:00:05.7]} 70. f6 {[%clk 0:00:18.8]} 70... Kf4
{[%clk 0:00:06.6]} 71. h3 {[%clk 0:00:17.1]} 71... Kg5 {[%clk 0:00:06.4]} 72. f7
{[%clk 0:00:17.4]} 72... Kh4 {[%clk 0:00:07.3]} 73. f8=Q {[%clk 0:00:17.2]}
73... h5 {[%clk 0:00:08.2]} 74. gxh5 {[%clk 0:00:16.3]} 74... Kxh5 {[%clk
0:00:07.6]} 75. Qg7 {[%clk 0:00:16.2]} 75... Kh4 {[%clk 0:00:07.9]} 76. Kc4
{[%clk 0:00:16.5]} 76... Kxh3 {[%clk 0:00:06.9]} 77. Kd4 {[%clk 0:00:16.9]}
77... Kh2 {[%clk 0:00:05.8]} 78. Ke4 {[%clk 0:00:17.8]} 78... Kh1 {[%clk
0:00:06.2]} 79. Kf3 {[%clk 0:00:18.1]} 79... Kh2 {[%clk 0:00:06.6]} 80. Qg2#
{[%clk 0:00:18.8]} 1-0

[Event "Late-Titled-Tuesday-Blitz-April-30-2024"]
[Site "Chess.com"]
[Date "2024.04.30"]
[Round "10"]
[White "Russian_berezka"]
[Black "Hudijegszid"]
[Result "0-1"]
[WhiteElo "2600"]
[BlackElo "2489"]
[TimeControl "180+1"]
[EndTime "15:55:39 PDT"]
[Termination "Hudijegszid won on time"]

1. d4 {[%clk 0:03:00.9]} 1... d5 {[%clk 0:02:56.5]} 2. c4 {[%clk 0:03:01.2]}
2... e6 {[%clk 0:02:56.4]} 3. Nc3 {[%clk 0:03:01.7]} 3... a6 {[%clk 0:02:56.2]}
4. cxd5 {[%clk 0:03:01.6]} 4... exd5 {[%clk 0:02:56.9]} 5. Nf3 {[%clk 0:03:02]}
5... h6 {[%clk 0:02:57.1]} 6. Bf4 {[%clk 0:02:53.5]} 6... Nf6 {[%clk 0:02:57.1]}
7. e3 {[%clk 0:02:51]} 7... Bd6 {[%clk 0:02:57]} 8. Bxd6 {[%clk 0:02:48.7]} 8...
Qxd6 {[%clk 0:02:56.1]} 9. Bd3 {[%clk 0:02:49.3]} 9... Nc6 {[%clk 0:02:55.6]}
10. O-O {[%clk 0:02:36.7]} 10... O-O {[%clk 0:02:54.9]} 11. Rc1 {[%clk
0:02:31.7]} 11... Ne7 {[%clk 0:02:50.2]} 12. Ne5 {[%clk 0:02:30.4]} 12... c6
{[%clk 0:02:48]} 13. Qf3 {[%clk 0:02:19.9]} 13... g6 {[%clk 0:02:37.1]} 14. Qf4
{[%clk 0:01:53.2]} 14... g5 {[%clk 0:02:14.7]} 15. Qf3 {[%clk 0:01:49.1]} 15...
Kg7 {[%clk 0:02:14.1]} 16. Ne2 {[%clk 0:01:47.5]} 16... Ng6 {[%clk 0:02:07.8]}
17. Qg3 {[%clk 0:01:32.6]} 17... Nh4 {[%clk 0:01:30.2]} 18. f4 {[%clk
0:01:27.4]} 18... Nh5 {[%clk 0:01:22.1]} 19. Qf2 {[%clk 0:01:27.3]} 19... f6
{[%clk 0:01:19.8]} 20. Nf3 {[%clk 0:01:11.9]} 20... Nxf3+ {[%clk 0:01:17.9]} 21.
Qxf3 {[%clk 0:01:12.6]} 21... g4 {[%clk 0:01:18.3]} 22. Qf2 {[%clk 0:01:13.3]}
22... f5 {[%clk 0:01:18.6]} 23. Nc3 {[%clk 0:00:42.8]} 23... Bd7 {[%clk
0:01:16.8]} 24. Na4 {[%clk 0:00:41.6]} 24... Rae8 {[%clk 0:01:16.8]} 25. Nc5
{[%clk 0:00:39.5]} 25... Bc8 {[%clk 0:01:17.3]} 26. Bb1 {[%clk 0:00:33.2]} 26...
Nf6 {[%clk 0:01:09.4]} 27. Nd3 {[%clk 0:00:26.9]} 27... Ne4 {[%clk 0:01:02.2]}
28. Qe2 {[%clk 0:00:27.6]} 28... h5 {[%clk 0:00:48.5]} 29. Ne5 {[%clk
0:00:27.3]} 29... h4 {[%clk 0:00:42.5]} 30. Bxe4 {[%clk 0:00:26.8]} 30... dxe4
{[%clk 0:00:42.5]} 31. Qc4 {[%clk 0:00:20.9]} 31... Be6 {[%clk 0:00:40.3]} 32.
Qa4 {[%clk 0:00:15.1]} 32... g3 {[%clk 0:00:35.1]} 33. h3 {[%clk 0:00:15]} 33...
Qd5 {[%clk 0:00:32.1]} 34. a3 {[%clk 0:00:14.7]} 34... Qb5 {[%clk 0:00:24]} 35.
Qxb5 {[%clk 0:00:14.1]} 35... axb5 {[%clk 0:00:24.9]} 36. Rc5 {[%clk 0:00:10.5]}
36... Re7 {[%clk 0:00:21.1]} 37. Rfc1 {[%clk 0:00:10.6]} 37... Bd5 {[%clk
0:00:20.9]} 38. Kf1 {[%clk 0:00:11]} 38... Ra8 {[%clk 0:00:20.6]} 39. R5c2
{[%clk 0:00:10.6]} 39... Kf6 {[%clk 0:00:20.3]} 40. Ke2 {[%clk 0:00:10.7]} 40...
Rg7 {[%clk 0:00:19.3]} 41. Kd2 {[%clk 0:00:11]} 41... Ke6 {[%clk 0:00:19.2]} 42.
Kc3 {[%clk 0:00:10.6]} 42... Rgg8 {[%clk 0:00:18.8]} 43. Rd2 {[%clk 0:00:10.3]}
43... Ra4 {[%clk 0:00:17.9]} 44. Rdd1 {[%clk 0:00:07.7]} 44... Rga8 {[%clk
0:00:16.2]} 45. Ng6 {[%clk 0:00:08.3]} 45... Kf6 {[%clk 0:00:16.2]} 46. Ne5
{[%clk 0:00:07.1]} 46... Rc4+ {[%clk 0:00:13.6]} 47. Nxc4 {[%clk 0:00:06.4]}
47... Bxc4 {[%clk 0:00:11.9]} 48. Kb4 {[%clk 0:00:05.6]} 48... Bd5 {[%clk
0:00:12.2]} 49. Kc5 {[%clk 0:00:05.6]} 49... Ra6 {[%clk 0:00:06.9]} 50. Kd6
{[%clk 0:00:06]} 50... Ra4 {[%clk 0:00:01.3]} 51. Rc5 {[%clk 0:00:06.4]} 51...
b4 {[%clk 0:00:01.2]} 52. axb4 {[%clk 0:00:05.7]} 52... Rxb4 {[%clk 0:00:02.1]}
53. Rd2 {[%clk 0:00:06]} 53... Rb3 {[%clk 0:00:02.6]} 54. Kc7 {[%clk 0:00:04.5]}
54... Rxe3 {[%clk 0:00:02.4]} 55. Kxb7 {[%clk 0:00:04.4]} 55... Re1 {[%clk
0:00:01.4]} 56. b4 {[%clk 0:00:00.7]} 56... e3 {[%clk 0:00:01.3]} 57. Rb2 {[%clk
0:00:01.3]} 57... Rf1 {[%clk 0:00:02]} 58. Rxd5 {[%clk 0:00:00.9]} 58... Rf2
{[%clk 0:00:02.9]} 59. Rd7 {[%clk 0:00:00.3]} 59... Ke6 {[%clk 0:00:02.9]} 60.
Rd6+ {[%clk 0:00:01.1]} 60... Kxd6 {[%clk 0:00:02.8]} 61. Rb3 {[%clk 0:00:01.8]}
61... e2 {[%clk 0:00:03.1]} 62. Re3 {[%clk 0:00:02.5]} 62... Kd5 {[%clk
0:00:03.1]} 63. b5 {[%clk 0:00:03.4]} 63... cxb5 {[%clk 0:00:02.1]} 64. Re4
{[%clk 0:00:03.6]} 64... Kxe4 {[%clk 0:00:02.3]} 65. d5 {[%clk 0:00:03.7]} 65...
Kxd5 {[%clk 0:00:02.7]} 0-1

[Event "Late-Titled-Tuesday-Blitz-April-30-2024"]
[Site "Chess.com"]
[Date "2024.04.30"]
[Round "10"]
[White "IMRosen"]
[Black "WPWPWP-2015"]
[Result "0-1"]
[WhiteElo "2656"]
[BlackElo "2487"]
[TimeControl "180+1"]
[EndTime "15:55:49 PDT"]
[Termination "WPWPWP-2015 won by checkmate"]

1. e4 {[%clk 0:03:00.9]} 1... e5 {[%clk 0:02:44.3]} 2. Nf3 {[%clk 0:03:00.7]}
2... Nc6 {[%clk 0:02:42.9]} 3. c3 {[%clk 0:03:01.3]} 3... Nf6 {[%clk 0:02:42.4]}
4. d4 {[%clk 0:03:01.4]} 4... d6 {[%clk 0:02:42.8]} 5. h3 {[%clk 0:03:00.8]}
5... Be7 {[%clk 0:02:42.2]} 6. Be3 {[%clk 0:02:58]} 6... O-O {[%clk 0:02:41.9]}
7. Bd3 {[%clk 0:02:58.7]} 7... Re8 {[%clk 0:02:41.4]} 8. O-O {[%clk 0:02:59]}
8... h6 {[%clk 0:02:40.4]} 9. Nbd2 {[%clk 0:02:59.5]} 9... Bd7 {[%clk
0:02:39.8]} 10. Re1 {[%clk 0:03:00]} 10... a6 {[%clk 0:02:38.9]} 11. a3 {[%clk
0:02:59.6]} 11... Bf8 {[%clk 0:02:38.6]} 12. Nf1 {[%clk 0:02:59.9]} 12... Kh7
{[%clk 0:02:38.7]} 13. Ng3 {[%clk 0:02:58.9]} 13... g6 {[%clk 0:02:39]} 14. Qd2
{[%clk 0:02:55.4]} 14... Bg7 {[%clk 0:02:39.1]} 15. b4 {[%clk 0:02:56.1]} 15...
Qe7 {[%clk 0:02:37.9]} 16. Rad1 {[%clk 0:02:55.9]} 16... b5 {[%clk 0:02:37.2]}
17. Nh2 {[%clk 0:02:52.5]} 17... Rad8 {[%clk 0:02:35.7]} 18. Qc2 {[%clk
0:02:47.9]} 18... Ng8 {[%clk 0:02:33.9]} 19. Nf3 {[%clk 0:02:46.6]} 19... f6
{[%clk 0:02:32]} 20. d5 {[%clk 0:02:42.2]} 20... Nb8 {[%clk 0:02:31]} 21. c4
{[%clk 0:02:42.9]} 21... c6 {[%clk 0:02:28.6]} 22. c5 {[%clk 0:02:30.3]} 22...
Rc8 {[%clk 0:02:24.8]} 23. cxd6 {[%clk 0:02:24.5]} 23... Qxd6 {[%clk 0:02:23.1]}
24. Bc5 {[%clk 0:02:24.8]} 24... Qc7 {[%clk 0:02:23.2]} 25. d6 {[%clk
0:02:22.1]} 25... Qd8 {[%clk 0:02:23.4]} 26. a4 {[%clk 0:02:19.8]} 26... Be6
{[%clk 0:02:22.8]} 27. Ra1 {[%clk 0:02:05.1]} 27... Nd7 {[%clk 0:02:22]} 28.
axb5 {[%clk 0:02:05.8]} 28... Nxc5 {[%clk 0:02:12.7]} 29. bxc5 {[%clk
0:01:59.8]} 29... axb5 {[%clk 0:02:10.4]} 30. Ra7 {[%clk 0:01:57.8]} 30... Ra8
{[%clk 0:02:07.9]} 31. Rc7 {[%clk 0:01:49.2]} 31... Rc8 {[%clk 0:02:06.3]} 32.
Ra7 {[%clk 0:01:38.2]} 32... Ra8 {[%clk 0:02:06.1]} 33. Rea1 {[%clk 0:01:38.6]}
33... Rxa7 {[%clk 0:02:06.4]} 34. Rxa7 {[%clk 0:01:39.3]} 34... Qb8 {[%clk
0:02:06.7]} 35. Ra6 {[%clk 0:01:29.2]} 35... Rc8 {[%clk 0:02:00]} 36. Nd2 {[%clk
0:01:12.4]} 36... Qb7 {[%clk 0:01:51.8]} 37. Rb6 {[%clk 0:01:09.1]} 37... Qa7
{[%clk 0:01:49.6]} 38. Ne2 {[%clk 0:01:06.6]} 38... h5 {[%clk 0:01:37.3]} 39. f4
{[%clk 0:00:56.6]} 39... Nh6 {[%clk 0:01:36.3]} 40. fxe5 {[%clk 0:00:50]} 40...
fxe5 {[%clk 0:01:35.9]} 41. Nf3 {[%clk 0:00:50.1]} 41... Bf6 {[%clk 0:01:33.5]}
42. Qc1 {[%clk 0:00:50.1]} 42... Nf7 {[%clk 0:01:33.1]} 43. h4 {[%clk
0:00:22.3]} 43... Bd8 {[%clk 0:01:27.8]} 44. Qe3 {[%clk 0:00:10.5]} 44... Kg7
{[%clk 0:01:11.4]} 45. Kh2 {[%clk 0:00:08.6]} 45... Nxd6 {[%clk 0:01:03.3]} 46.
Nxe5 {[%clk 0:00:04.5]} 46... Bxb6 {[%clk 0:01:00.7]} 47. cxb6 {[%clk
0:00:04.6]} 47... Qb8 {[%clk 0:01:01]} 48. Nf4 {[%clk 0:00:02.8]} 48... Nf7
{[%clk 0:00:53.4]} 49. Nxe6+ {[%clk 0:00:03.2]} 49... Kg8 {[%clk 0:00:52.7]} 50.
Nc7 {[%clk 0:00:03.3]} 50... Rxc7 {[%clk 0:00:50.9]} 51. bxc7 {[%clk 0:00:03.1]}
51... Qxc7 {[%clk 0:00:51.4]} 52. g3 {[%clk 0:00:03.7]} 52... Nxe5 {[%clk
0:00:49.3]} 53. Be2 {[%clk 0:00:04.1]} 53... Nf7 {[%clk 0:00:47.4]} 54. Qf4
{[%clk 0:00:03.4]} 54... Qe5 {[%clk 0:00:45.9]} 55. Qe3 {[%clk 0:00:03.3]} 55...
Kg7 {[%clk 0:00:45.3]} 56. Kg2 {[%clk 0:00:03.1]} 56... Nd6 {[%clk 0:00:43.5]}
57. Bd3 {[%clk 0:00:03.4]} 57... c5 {[%clk 0:00:42.6]} 58. Bc2 {[%clk
0:00:02.9]} 58... b4 {[%clk 0:00:40.6]} 59. Kf3 {[%clk 0:00:02.5]} 59... c4
{[%clk 0:00:39.3]} 60. Qa7+ {[%clk 0:00:03.4]} 60... Kh6 {[%clk 0:00:36.1]} 61.
Qe3+ {[%clk 0:00:03.4]} 61... Kg7 {[%clk 0:00:36.2]} 62. Qa7+ {[%clk 0:00:03.4]}
62... Kf6 {[%clk 0:00:36.6]} 63. Qb8 {[%clk 0:00:02.7]} 63... Qc3+ {[%clk
0:00:33.2]} 64. Kf4 {[%clk 0:00:03.2]} 64... Qd2+ {[%clk 0:00:33]} 65. Kf3
{[%clk 0:00:03.5]} 65... Qc3+ {[%clk 0:00:28.3]} 66. Kf4 {[%clk 0:00:03.7]}
66... Nf7 {[%clk 0:00:22]} 67. Qb6+ {[%clk 0:00:03]} 67... Kg7 {[%clk 0:00:22]}
68. e5 {[%clk 0:00:02.8]} 68... Qd2+ {[%clk 0:00:20.5]} 69. Kf3 {[%clk
0:00:03.1]} 69... Qxc2 {[%clk 0:00:20.2]} 70. Qf6+ {[%clk 0:00:03.4]} 70... Kg8
{[%clk 0:00:19.6]} 71. Qxg6+ {[%clk 0:00:03.4]} 71... Qxg6 {[%clk 0:00:18.9]}
72. e6 {[%clk 0:00:03.1]} 72... Qxe6 {[%clk 0:00:18.7]} 73. Kg2 {[%clk
0:00:03.7]} 73... Qe4+ {[%clk 0:00:18.7]} 74. Kh2 {[%clk 0:00:04.2]} 74... Qe2+
{[%clk 0:00:18.8]} 75. Kh3 {[%clk 0:00:03.8]} 75... Qg4+ {[%clk 0:00:18.9]} 76.
Kh2 {[%clk 0:00:04.2]} 76... Qe2+ {[%clk 0:00:19.4]} 77. Kh3 {[%clk 0:00:04.5]}
77... Ne5 {[%clk 0:00:19.8]} 78. g4 {[%clk 0:00:03.9]} 78... Qxg4+ {[%clk
0:00:18.8]} 79. Kh2 {[%clk 0:00:04.4]} 79... Nf3+ {[%clk 0:00:19.7]} 80. Kh1
{[%clk 0:00:04.7]} 80... Qg1# {[%clk 0:00:19.9]} 0-1